Cogmind - Beta 13 @@@ ROGUE MODE // 2024.06.26 @ 00:04:40 Player: Wabbajack Result: Destroyed by L-41 Fighter with Axe Performance ------------- Evolutions (3) 1500 Regions Visited (4) 800 Robots Destroyed (51) 255 Value Destroyed (1713) 1713 Prototype IDs (3) 60 Alien Tech Used (0) 0 Bonus (0) 0 TOTAL SCORE: 4328 Bonus ------- None Cogmind --------- Core Integrity 0/700 Matter 159/300 Energy 100/100 System Corruption 0% Temperature Cool (0) Movement Core (350) Ox6 Location -7/Factory Parts ------- > --- POWER (1) -------- (None) > --- PROPULSION (3) --- (None) > --- UTILITY (6) ------ Large Storage Unit Graphene Brace > --- WEAPON (3) ------- (None) > --- INVENTORY (15) --- Small Storage Unit Peak State ------------ > --- POWER ------------ Light Nuclear Core > --- PROPULSION ------- Armored Treads Advanced Treads Advanced Treads > --- UTILITY ---------- Improved Heat Sink Large Storage Unit Improved Weapon Shielding Graphene Brace > --- WEAPON ----------- Arc Projector Arc Projector Particle Gun > --- INVENTORY -------- Light Ion Engine Improved Ion Engine Small Storage Unit Improved Utility Shielding Insulated Plating [Rating: 37] Favorites ----------- Power Light Nuclear Core Engine Reinforced Ion Engine Power Core Light Nuclear Core Propulsion Advanced Treads Treads Advanced Treads Leg Aluminum Leg Utility Small Storage Unit Device Improved Heat Sink Storage Small Storage Unit Protection Heavy Armor Plating Weapon Heavy Assault Rifle Energy Gun Arc Projector Ballistic Gun Heavy Assault Rifle Launcher Grenade Launcher Build | -11 -10 -9 -8 -7 ------- Run | Yrd Mat Mat Mat Fac Slots Evolved 6 | . . 2 2 2 Power . | . . . . . Propulsion 1 | . . 1 . . Utility 4 | . . 1 1 2 Weapon 1 | . . . 1 . Parts Attached 57 | 6 2 21 25 3 Power 8 | 1 . 2 3 2 Engine 5 | 1 . 2 2 . Core 3 | . . . 1 2 Reactor . | . . . . . Propulsion 11 | 2 1 5 3 . Treads 6 | . . 3 3 . Leg 5 | 2 1 2 . . Wheel . | . . . . . Hover . | . . . . . Flight . | . . . . . Utility 14 | 1 1 2 9 1 Device 5 | . . . 5 . Storage 2 | 1 . . 1 . Processor . | . . . . . Hackware . | . . . . . Protection 7 | . 1 2 3 1 Artifact . | . . . . . Weapon 24 | 2 . 12 10 . Energy Gun 9 | 1 . 3 5 . Energy Cannon . | . . . . . Ballistic Gun 11 | 1 . 6 4 . Ballistic Cannon . | . . . . . Launcher 4 | . . 3 1 . Special Weapon . | . . . . . Impact Weapon . | . . . . . Slashing Weapon . | . . . . . Piercing Weapon . | . . . . . Special Melee Weapon . | . . . . . Unidentified Prototypes 1 | . . . 1 . Parts Lost 29 | . 1 2 22 4 Power 5 | . . 1 2 2 Propulsion 6 | . 1 . 5 . Utility 8 | . . 1 5 2 Weapon 10 | . . . 10 . Highest Loss Streak 9 | . 1 2 9 4 To Critical Strikes . | . . . . . Average Slot Usage (%) 80 | . 92 83 87 35 Engine 7 | . 14 10 5 . Core 2 | . . . 2 6 Treads 13 | . . 10 23 . Leg 8 | . 26 18 . . Device 7 | . . . 14 7 Storage 10 | . 14 11 9 7 Protection 8 | . 8 11 5 13 Energy Gun 10 | . 14 7 14 . Ballistic Gun 11 | . 14 13 11 . Naked Turns . | . . . . . Heaviest Build 44 | 14 15 36 44 31 Greatest Support 66 | 20 20 66 66 3 Greatest Overweight (x) 11 | 4 1 1 11 10 Average Overweight (x) . | . . . . 9 Largest Inventory Capacity 15 | 8 8 8 15 15 Average Capacity 10 | 7 8 8 10 15 Most Carried 8 | 2 4 8 8 3 Average Carried 4 | 1 3 6 5 1 Final Capacity 15 | 8 8 8 15 15 Final Carried 8 | 2 4 8 4 1 Class Distribution -------------------- 59% | Mutant 23% | Scavenger-Tank 9% | Tank 6% | Gunner Dominant Class ---------------- Mutant | -10/Materials Mutant | -9/Materials Scavenger-Tank | -8/Materials Mutant | -7/Factory Resources | -11 -10 -9 -8 -7 ----------- Run | Yrd Mat Mat Mat Fac Matter Collected 1247 | 170 150 407 520 . Remotely . | . . . . . Salvage Created 1814 | . 150 655 1009 . Parts 121 | . 3 50 68 . Haulers Intercepted . | . . . . . Recyclers Shooed . | . . . . . Parts Field Recycled . | . . . . . Retrieved Matter . | . . . . . Parts Self-Destructed . | . . . . . Prevented . | . . . . . Kills | -11 -10 -9 -8 -7 ------- Run | Yrd Mat Mat Mat Fac Combat Hostiles Destroyed 42 | . 4 18 20 . Guns 31 | . 4 9 18 . AOE 11 | . . 9 2 . Classes Destroyed 10 | . 1 5 4 . Worker 2 | . . . 2 . Builder 3 | . . . 3 . Recycler 1 | . . 1 . . Operator 1 | . . . 1 . Watcher 2 | . . 1 1 . Swarmer 5 | . . 3 2 . Grunt 28 | . 4 11 13 . Brawler 1 | . . 1 . . Sentry 7 | . . 3 4 . Heavy 1 | . . . 1 . Best Kill Streak 9 | . 2 5 9 . Combat Bots Only 5 | . 2 5 4 . Max Kills in Single Turn 2 | . 1 2 2 . Gunslinging . | . . . . . Exploded 2 | . . 2 1 . Melee . | . . . . . Uniques/NPCs Destroyed . | . . . . . Combat | -11 -10 -9 -8 -7 -------- Run | Yrd Mat Mat Mat Fac Hostile Shots Fired 443 | . 42 71 258 72 Missed 135 | . 13 18 82 22 Damage Taken 4830 | . 345 643 2837 1005 Core 1191 | . 47 112 306 726 Absorbed by Shields . | . . . . . Redirected to Shielding 241 | . 8 5 106 122 Core Remaining (%) 74 | 100 81 72 44 . Volleys Fired 126 | . 23 31 72 . Largest 3 | . 2 2 3 . Hottest 175 | . 70 70 175 . Shots Fired 306 | . 46 62 198 . Gun 290 | . 46 54 190 . Cannon . | . . . . . Launcher 16 | . . 8 8 . Special . | . . . . . Kinetic 178 | . 23 35 120 . Thermal 53 | . 23 4 26 . Explosive 16 | . . 8 8 . Electromagnetic 59 | . . 15 44 . Robot Hit Streak 9 | . 4 7 9 . Robot Miss Streak 4 | . 4 2 4 . Penetration Max . | . . . . . Secondary Targets 6 | . 1 2 3 . Max Gunslinging Chain 1 | . 1 1 1 . Shots Hit Robots 183 | . 26 38 119 . Core Hits 97 | . 8 33 56 . Critical Kills . | . . . . . Critical Parts Destroyed 1 | . . . 1 . Critical Strikes 5 | . . . 5 . Burn 4 | . . . 4 . Destroy 1 | . . . 1 . Melee Attacks . | . . . . . Impact . | . . . . . Slashing . | . . . . . Piercing . | . . . . . Sneak Attacks . | . . . . . Combat Hostiles . | . . . . . Follow-up Attacks . | . . . . . Damage Inflicted 3825 | . 344 1156 2325 . Guns 2597 | . 344 457 1796 . Cannons . | . . . . . Explosions 1220 | . . 691 529 . Melee . | . . . . . Ramming 8 | . . 8 . . Kinetic 1655 | . 171 248 1236 . Thermal 574 | . 173 37 364 . Explosive 1140 | . . 691 449 . Electromagnetic 448 | . . 172 276 . Impact . | . . . . . Slashing . | . . . . . Piercing . | . . . . . Highest Corruption 3 | . . . 3 . Average Corruption 2 | . . . 2 . Corruption Purged . | . . . . . Corruption Blocked . | . . . . . Effects 6 | . . . 6 . Matter Fused 1 | . . . 1 . Heat Flow Errors 1 | . . . 1 . Energy Discharges 2 | . . . 2 . Data Loss (minor) 2 | . . . 2 . Overload Shots . | . . . . . Overflow Damage 10 | . . . 10 . Projectiles . | . . . . . Explosions 10 | . . . 10 . Melee . | . . . . . Knockbacks . | . . . . . Impact . | . . . . . Kinetic . | . . . . . Secondary . | . . . . . Self-Inflicted Damage 59 | . . 6 53 . Shots 3 | . . 2 1 . Rammed 2 | . . 2 . . Targets Rammed 2 | . . 2 . . Kicked . | . . . . . Crushed . | . . . . . Highest Temperature 245 | . 153 89 245 . Average Temperature 52 | . 54 30 63 . Received Heat Transfer 2085 | . 189 294 1260 342 Siege Activations . | . . . . . Robots Corrupted . | . . . . . Combat Hostiles . | . . . . . Parts Fried 1 | . . . 1 . Impact Corruptions . | . . . . . Robots Melted . | . . . . . Combat Hostiles . | . . . . . Parts Melted 2 | . 1 . 1 . Heat Transferred 1691 | . 518 111 1062 . Parts Sabotaged . | . . . . . Parts Stolen . | . . . . . Parts Stripped . | . . . . . Power Chain Reactions 2 | . . . 2 . Alert | -11 -10 -9 -8 -7 ------- Run | Yrd Mat Mat Mat Fac Peak Influence 381 | . 115 381 367 67 Initial 124 | . . 48 124 67 Average 161 | . 58 209 200 62 Maximum Alert Level 1 | . . 1 1 . Low Security (%) 55 | 100 100 38 37 100 Level 1 44 | . . 61 62 . Level 2 . | . . . . . Level 3 . | . . . . . Level 4 . | . . . . . Level 5 . | . . . . . High Security . | . . . . . Max Security . | . . . . . Squads Dispatched 9 | . 3 2 4 . Investigation 5 | . 2 2 1 . Extermination . | . . . . . Reinforcement 4 | . 1 . 3 . Assault . | . . . . . Garrison . | . . . . . Intercept . | . . . . . Searches Triggered . | . . . . . Construction Impeded 1 | . . . 1 . Haulers Reinforced . | . . . . . Active Scanning Responses . | . . . . . Cargo Convoy Interrupts . | . . . . . Stealth | -11 -10 -9 -8 -7 --------- Run | Yrd Mat Mat Mat Fac Distress Signals 5 | . . . 5 . Communications Jammed . | . . . . . Distress Signals . | . . . . . Times Spotted 73 | . 7 21 41 4 Peak Tracking Total 5 | . 2 5 5 4 Tactical Retreats 5 | . . . 5 . Traps | -11 -10 -9 -8 -7 ------- Run | Yrd Mat Mat Mat Fac Traps Triggered 4 | . 1 . 3 . Indirectly . | . . . . . Trap Hack Attempts . | . . . . . Triggered . | . . . . . Disarmed . | . . . . . Reprogrammed . | . . . . . Reused . | . . . . . Traps Extracted . | . . . . . Installed . | . . . . . Triggered . | . . . . . Machines | -11 -10 -9 -8 -7 ---------- Run | Yrd Mat Mat Mat Fac Machines Disabled 1 | . . 1 . . Max in Single Turn 1 | . . 1 . . Machines Repaired . | . . . . . Machines Dismantled . | . . . . . Machines Sabotaged . | . . . . . Overloaded Fab Kills . | . . . . . Hacking | -11 -10 -9 -8 -7 --------- Run | Yrd Mat Mat Mat Fac Machines Accessed 5 | . 1 3 1 . Terminals 5 | . 1 3 1 . Fabricators . | . . . . . Repair Stations . | . . . . . Recycling Units . | . . . . . Scanalyzers . | . . . . . Garrison Access . | . . . . . Total Hacks 22 | . 4 13 5 . Successful 10 | . 1 7 2 . Failed 12 | . 3 6 3 . Catastrophic 5 | . 1 2 2 . Database Lockouts . | . . . . . Manual 14 | . 2 8 4 . Terminals 22 | . 4 13 5 . Fabricators . | . . . . . Repair Stations . | . . . . . Recycling Units . | . . . . . Scanalyzers . | . . . . . Garrison Access . | . . . . . Terminal Hacks 10 | . 1 7 2 . Record 1 | . . 1 . . Robot Analysis 1 | . . 1 . . Prototype ID Bank 1 | . 1 . . . Alert Level 1 | . . 1 . . Unreport Threat 2 | . . 1 1 . Maintenance Status 1 | . . 1 . . Registered Prototypes 1 | . . 1 . . Zone Layout 2 | . . 1 1 . Fabricator Hacks . | . . . . . Repair Station Hacks . | . . . . . Recycling Unit Hacks . | . . . . . Scanalyzer . | . . . . . Garrison Access Hacks . | . . . . . Unauthorized Hacks . | . . . . . Terminals . | . . . . . Fabricators . | . . . . . Repair Stations . | . . . . . Recycling Units . | . . . . . Scanalyzers . | . . . . . Garrison Access . | . . . . . Data Cores Recovered 1 | . . . 1 . Used . | . . . . . Hacking Detections 5 | . 1 3 1 . Full Trace Events 5 | . 1 3 1 . Feedback Events . | . . . . . Feedback Blocked . | . . . . . Robot Schematics Acquired . | . . . . . Robots Built . | . . . . . Authchips . | . . . . . Time . | . . . . . Total Robot Build Rating . | . . . . . Part Schematics Acquired . | . . . . . Parts Built . | . . . . . Authchips . | . . . . . Time . | . . . . . Total Part Build Rating . | . . . . . Parts Repaired . | . . . . . Time . | . . . . . Parts Recycled . | . . . . . Recycled Matter . | . . . . . Retrieved Matter . | . . . . . Retrieved Components . | . . . . . Parts Scanalyzed . | . . . . . Part Schematics Acquired . | . . . . . Parts Damaged . | . . . . . Bothacking | -11 -10 -9 -8 -7 ------------ Run | Yrd Mat Mat Mat Fac Used RIF Installer . | . . . . . Robots Hacked . | . . . . . Non-combat . | . . . . . Combat . | . . . . . Robot Hacks Applied . | . . . . . Relay Couplers Released . | . . . . . Fabnet Peak Effective % . | . . . . . Robots Rewired . | . . . . . Allies Hacked . | . . . . . Hacks Repelled . | . . . . . Allies | -11 -10 -9 -8 -7 -------- Run | Yrd Mat Mat Mat Fac Total Allies . | . . . . . Largest Group . | . . . . . Highest-Rated Group . | . . . . . Highest-Rated Ally . | . . . . . Total Orders . | . . . . . Ally Attacks . | . . . . . Total Damage . | . . . . . Kills . | . . . . . Allies Corrupted . | . . . . . Allies Melted . | . . . . . Intel | -11 -10 -9 -8 -7 ------- Run | Yrd Mat Mat Mat Fac Robot Analysis Total 1 | . . 1 . . Derelict Logs Recovered . | . . . . . Drone Launches . | . . . . . Drone Recoveries . | . . . . . Exploration | -11 -10 -9 -8 -7 ------------- Run | Yrd Mat Mat Mat Fac Turns Passed 2066 | 57 285 560 925 239 Spaces Moved 991 | 37 159 331 419 45 Core 70 | 19 . . 6 45 Treads 509 | . . 96 413 . Legs 412 | 18 159 235 . . Wheels . | . . . . . Hover . | . . . . . Flight . | . . . . . Fastest Speed 50 | 50 120 120 145 350 Average Speed 158 | 125 123 127 161 522 Slowest Speed 600 | 250 190 225 600 550 Overloaded Moves . | . . . . . Propulsion Burnouts . | . . . . . Robots Hopped . | . . . . . Cave-ins Triggered . | . . . . . Exploration Rate (%) 22 | 5 31 33 43 2 Regions Visited 4 Branch Regions . Pre-discovered Areas . | . . . . . Known Exits Taken . | . . . . . Unknown Exits Taken 4 | 1 1 1 1 . Scrap Searched . | . . . . . Spaces Dug . | . . . . . Terrain Destroyed 82 | . . 41 41 . Melee . | . . . . . Projectile . | . . . . . AOE 82 | . . 41 41 . Terrain Rammed . | . . . . . Walls Destroyed . | . . . . . Machines Disabled . | . . . . . Actions | -11 -10 -9 -8 -7 --------- Run | Yrd Mat Mat Mat Fac Total 1228 | 44 201 401 533 49 Wait 19 | . 16 2 . 1 Move 987 | 36 158 330 418 45 Hop . | . . . . . Pick Up 19 | 2 2 6 9 . Fast Attach 21 | 6 2 5 8 . Attach 18 | . . 2 13 3 Detach 4 | . . 1 3 . Swap 18 | . . 14 4 . Drop 14 | . . 8 6 . Fire 126 | . 23 31 72 . Melee . | . . . . . Ram . | . . . . . Kick . | . . . . . Crush 2 | . . 2 . . Escape Stasis . | . . . . . Rewire . | . . . . . Trap . | . . . . . Miscellaneous . | . . . . . Route ------- -11/Scrapyard -10/Materials -9/Materials -8/Materials -7/Factory History --------- Turn | Location | Event 35 | -11/Scrapyard | Discovered new exit (range 15) 58 | -11/Scrapyard | Entered Materials 309 | -10/Materials | Build established: Mutant 315 | -10/Materials | Discovered new exit (range 5) 343 | -10/Materials | Entered another Materials area 343 | -9/Materials | Evolved 2 slots: Propulsion x1, Utility x1 877 | -9/Materials | Discovered new exit (range 16) 903 | -9/Materials | Entered another Materials area 903 | -8/Materials | Evolved 2 slots: Utility x1, Weapon x1 1406 | -8/Materials | Lost 9 parts (1p2n2u4w) 1743 | -8/Materials | Build established: Scavenger-Tank 1779 | -8/Materials | Discovered new exit (range 16) 1806 | -8/Materials | Core integrity fell below 50% 1828 | -8/Materials | Entered Factory 1828 | -7/Factory | Evolved 2 slots: Utility x2 1859 | -7/Factory | Lost 8 parts (1p2n2u3w) 2046 | -7/Factory | Core integrity fell below 50% 2058 | -7/Factory | Core integrity fell below 20% 2067 | -7/Factory | Destroyed by L-41 Fighter with Axe Last Messages --------------- 01791_ Arm. Treads destroyed. 01794_ Imp. Weapon Shielding destroyed. 01794_ Arc Projector destroyed. 01802_ Adv. Treads destroyed. 01808_ Deuterium Engine destroyed. 01821_ System corrupted: Component data lost. 01823_ Particle Gun destroyed. 01828_ Imp. Heat Sink destroyed. PARAMETERS=UTILITY+2 LOCATION=UNKNOWN GOAL=ESCAPE 01896_ K-01 Serf collects debris. 02010_ ALERT: All DSF locations entering lockdown mode. 02015_ K-01 Serf collects debris. 02020_ K-01 Serf cleans the Matter Pump. 02022_ Insulated Plating destroyed. 02024_ K-01 Serf collects debris. 02033_ Lgt. Nuclear Core destroyed. 02062_ Imp. Utility Shielding destroyed. Map ----- +----------------------------------------------------+ | ?????????????????????????????????????????? | | ????????????? ???????????????????????? | | ????????????# ??????????????????????? | | ????????????# #??????????????????????? | | ????????????# #??????????????????????? | | ????????????# #??????????????????????? | | ????????????# #??????????????????????? | | ????????????+ #??????????????????????? | | ????????????# +??????????????????????? | | ????????????# #??????????????????????? | | ????????????# #??????????????????????? | | ????????????# #??????????????????????? | | ????????????# #??????????????????????? | | ????????????# ###########????????????? | | ????????????# ## #????????????? | | ????????????# ## #????????????? | | ????????????# ## #????????????? | | ????????????# ## #????????????? | | ????????????# ## #????????????? | | ????????????##### ## #????????????? | | ????????????????# ## #????????????? | | ????????????????# #######+########## | | ????????????????# ###### | | ????????????????# g | | ????????????????# g | | ????????????????#@l g """ """ """ | | ????????????????# """ """ """ | | ????????????????# """ """ """ """ """? | | ????????????????# """ """ ? | | ????????????????# """ """ ?? | | ????????????????# ###### ???? | | ????????????????# """ """ #?????##+##??? | | ???????????????? """ """ #????????????? | | ???????????????# """ """ #????????????? | | ???????????????# #????????????? | | ???????????????# """ "?" #????????????? | | ???????????????# """ "?" #????????????? | | ???????????????# "?? ??? #????????????? | | ???????????????# ?? ??? #????????????? | | ???????????????# "?? ??????????????????? | | ???????????????? "?? ??????????????????? | | ???????????????? ??????????????????????? | | ???????????????? ??????????????????????? | | ?????????????????????????????????????????? | | ?????????????????????????????????????????? | | ?????????????????????????????????????????? | | ?????????????????????????????????????????? | | ?????????????????????????????????????????? | | ?????????????????????????????????????????? | | ?????????????????????????????????????????? | +----------------------------------------------------+ Best States ------------- Heat Dissipation 45 Energy Generation 14 Energy Capacity 275 Matter Stores 300 Matter Capacity 300 Sight Range 16 Terrain Scan Density 10 Base Temperature (-) 100 Armor Coverage 600 Resistance: EM 15 Core Shielding 20 Utility Shielding 66 Weapon Shielding 66 Evasion (%) 55 Recoil Reduction 3 Item Schematics ----------------- None Robot Schematics ------------------ None Fabricated ------------ Nothing Alien Tech Used ----------------- None Achievements -------------- None Challenges ------------ None Game ------ Seed ThermicMobileRailgun Manual? 0 Play Time 00:28:50 Cumulative 16.4 hours Start 2024.06.25 @ 23:36:41 End 2024.06.26 @ 00:04:40 Sessions 1 Manual Loads 0 Difficulty Rogue Special Mode None Game No. 26 Rogue 25 Adventurer 1 Explorer 0 Win Type - Total 0 Types 0/0/0/0/0/0/0/0/0 Lore% 8 Gallery% 20 Achievement% 14 Wizard Run 0 Options --------- Layout 1 ASCII 0 Keyboard 1 Movement Numpad Keybinds 0 Fullscreen 1 Font 24/Smallcaps Map View 50x40 Zoom Use 0% Tactical HUD 1 Map Filters NONE Filters NONE Steam 1 RUN: ea6f8b09-9511-4762-85b2-e5eaffca0df1